bitfinex-derivatives/quotes_SOLF0:USTF0_20251002
["timestamp","ask_amount","ask_price","bid_price","bid_amount"]
[1759380267033,7.41,223.38,223.33,4.0279]
[1759380267242,3.06938142,223.42,223.35,7.82]
[1759380267443,10.47938142,223.41,223.35,7.82]
[1759380267632,1.38659997,223.43,223.35,7.82]
[1759380267833,10.48088447,223.42,223.35,7.82]
[1759380269239,14.50718447,223.42,223.31,7.82]
[1759380269434,3.07088447,223.41,223.33,5.41449997]
[1759380269635,10.48088447,223.42,223.33,5.41449997]
[1759380269835,1.38659997,223.41,223.33,5.41449997]
[1759380270040,7.41,223.4,223.33,5.41449997]
[1759380270538,0.77927313,223.44,223.29,1.38659997]
[1759380270539,1.38659997,223.37,223.29,1.38659997]
[1759380270741,7.41,223.36,223.29,1.38659997]
[1759380272630,10.48088447,223.36,223.29,1.38659997]
[1759380272836,7.41,223.36,223.29,1.38659997]
[1759380273237,3.0739322,223.36,223.27,13.23539997]
[1759380273541,7.41,223.35,223.27,13.23539997]
[1759380277137,1.38659997,223.36,223.27,13.23539997]
[1759380277437,7.41,223.33,223.24,5.41609997]
[1759380277636,8.79659997,223.33,223.24,5.41609997]
[1759380277836,7.41,223.33,223.25,7.82]
[1759380278135,7.41,223.43,223.33,7.82]
[1759380278341,7.41,223.4,223.33,7.82]
[1759380279140,7.41,223.4,223.29,172.9479]
[1759380279141,8.18927313,223.44,223.34,1.38659997]
[1759380279441,9.5758731,223.44,223.35,7.82]
[1759380280741,7.41,223.42,223.35,7.82]
[1759380281742,7.41,223.42,223.36,4.0274]
[1759380281935,7.41,223.42,223.35,9.20659997]
[1759380283735,7.41,223.42,223.35,7.82]
[1759380283736,8.79659997,223.42,223.35,7.82]
[1759380284742,12.82289997,223.42,223.33,4.0278]
[1759380285037,8.79659997,223.42,223.34,9.20659997]
[1759380285242,7.41,223.42,223.34,9.20659997]
[1759380286240,7.41,223.42,223.35,4.0275]
[1759380289940,2.1658731,223.44,223.34,9.20659997]
[1759380289941,0.77927313,223.44,223.36,7.82]
[1759380290142,7.41,223.48,223.41,4.0265]
[1759380290347,1.38659997,223.47,223.4,7.82]
[1759380290537,7.41,223.46,223.4,7.82]
[1759380290944,7.41,223.44,223.37,4.0272]
[1759380291946,7.41,223.48,223.38,7.82]
[1759380292146,8.79659997,223.48,223.38,9.20659997]
[1759380293344,8.79659997,223.48,223.38,7.82]
[1759380293551,4.0254,223.47,223.38,13.23359997]
[1759380293751,7.17,223.46,223.38,13.23359997]
[1759380296246,4.0258,223.45,223.38,9.20659997]
[1759380296449,7.17,223.44,223.36,1.38659997]
[1759380297355,7.17,223.44,223.36,8.95659997]
[1759380297555,11.1961,223.44,223.36,8.95659997]
[1759380297757,3.06157977,223.43,223.36,7.57]
[1759380297956,3.06157977,223.42,223.36,7.57]
[1759380298152,3.06157977,223.43,223.39,1.38659997]
[1759380298359,7.17,223.47,223.41,1.38659997]
[1759380298660,7.17,223.55,223.46,7.57]
[1759380298856,7.17,223.55,223.48,1.38659997]
[1759380299256,7.17,223.55,223.46,7.57]
[1759380299257,7.17,223.55,223.46,8.95659997]
[1759380300162,7.17,223.55,223.47,4.0254]
[1759380300363,7.17,223.55,223.48,8.95659997]
[1759380300556,7.17,223.55,223.51,7.57]
[1759380301455,0.77888069,223.58,223.47,8.95659997]
[1759380301657,7.17,223.53,223.44,1.38659997]
[1759380302868,1.38659997,223.52,223.44,1.38659997]
[1759380303069,7.17,223.49,223.41,1.38659997]
[1759380303363,7.17,223.48,223.39,7.57]
[1759380303566,7.17,223.48,223.41,7.57]
[1759380304365,7.17,223.48,223.38,1.38659997]
[1759380304763,4.0254,223.47,223.38,1.38659997]
[1759380305359,4.0254,223.47,223.37,333.33]
[1759380305563,7.17,223.46,223.38,1.38659997]
[1759380308270,7.17,223.46,223.37,333.33]
[1759380309065,4.0259,223.45,223.33,11.5978]
[1759380309273,7.17,223.44,223.33,11.5978]
[1759380309671,7.17,223.44,223.35,4.0275]
[1759380309875,7.17,223.44,223.34,7.57]
[1759380311680,11.196,223.44,223.34,7.57]
[1759380315083,4.0264,223.42,223.34,7.57]
[1759380315279,7.17,223.41,223.3,46.59]
[1759380315582,7.17,223.41,223.3,7.57]
[1759380315976,4.0267,223.4,223.3,7.57]
[1759380316378,7.17,223.39,223.3,7.57]
[1759380317776,7.17,223.37,223.3,7.57]
[1759380318577,7.17,223.34,223.22,7.57]
[1759380319680,7.17,223.34,223.24,4.0295]
[1759380319985,7.17,223.34,223.25,7.57]
[1759380320984,7.17,223.34,223.26,4.0291]
[1759380321189,7.17,223.4,223.27,7.57]
[1759380321685,7.17,223.4,223.33,7.86]
[1759380323789,7.17,223.4,223.3,4.0283]
[1759380324087,7.17,223.4,223.29,7.68]
[1759380324381,7.52,223.37,223.25,7.68]
[1759380324776,7.52,223.35,223.25,7.68]
[1759380325381,7.52,223.31,223.21,325.82]
[1759380326788,7.52,223.29,223.21,325.82]
[1759380327090,7.52,223.29,223.2,7.68]
[1759380329287,7.52,223.33,223.24,7.68]
[1759380330789,7.52,223.31,223.2,4.0302]
[1759380331002,7.52,223.31,223.2,7.68]
[1759380331494,7.52,223.29,223.2,7.68]
[1759380331891,7.52,223.27,223.2,7.68]
[1759380339299,4.0292,223.26,223.14,7.68]
[1759380339496,7.52,223.27,223.14,7.68]
[1759380339996,7.52,223.27,223.18,7.68]
[1759380340300,9.68270179,223.31,223.18,7.68]
[1759380341602,4.0285,223.3,223.2,7.68]
[1759380342003,7.52,223.29,223.2,7.68]
[1759380343604,4.0288,223.28,223.2,7.68]
[1759380343805,2.16270179,223.27,223.14,7.68]
[1759380344101,7.52,223.26,223.14,7.68]
[1759380344703,4.0295,223.25,223.14,7.68]
[1759380344898,7.52,223.26,223.15,7.68]
[1759380346594,7.52,223.26,223.2,7.68]
[1759380346798,7.52,223.3,223.2,7.68]
[1759380346999,7.52,223.35,223.2,7.68]
[1759380347199,7.52,223.35,223.21,7.68]
[1759380348299,4.0281,223.33,223.23,4.0298]
[1759380348603,3.04094416,223.34,223.21,7.68]
[1759380348805,7.52,223.35,223.23,7.68]
[1759380349004,7.52,223.35,223.22,64.85090179]
[1759380349005,7.52,223.35,223.25,7.68]
[1759380349303,7.52,223.35,223.27,7.68]
[1759380350798,7.52,223.35,223.28,4.0289]
[1759380351195,7.52,223.39,223.29,7.68]
[1759380352704,7.52,223.39,223.3,4.0285]
[1759380353207,7.52,223.39,223.29,7.68]
[1759380353407,11.5469,223.39,223.29,7.68]
[1759380355309,7.52,223.39,223.29,11.7086]
[1759380355608,7.52,223.39,223.28,110.3]
[1759380355609,7.52,223.39,223.3,7.78]
[1759380356102,7.52,223.39,223.31,11.8082]
[1759380357306,7.69,223.43,223.34,7.78]
[1759380358813,7.69,223.43,223.35,4.0276]
[1759380360016,11.7163,223.43,223.34,7.78]
[1759380360212,3.05351408,223.42,223.34,7.78]
[1759380360413,7.69,223.41,223.34,7.78]
[1759380360816,7.69,223.41,223.31,100.8]
[1759380361824,4.0269,223.39,223.3,7.78]
[1759380362019,7.69,223.38,223.3,7.78]
[1759380362722,7.69,223.38,223.31,7.78]
[1759380376142,7.69,223.38,223.32,4.0281]
[1759380376637,7.69,223.38,223.32,11.8081]
[1759380379345,7.69,223.38,223.34,4.0278]
[1759380379541,7.69,223.38,223.35,7.78]
[1759380380444,7.69,223.4,223.32,4.0281]
[1759380381147,7.69,223.38,223.31,7.78]
[1759380386151,11.7172,223.38,223.31,7.78]
[1759380386446,1.3849754,223.36,223.28,110.2]
[1759380386747,7.22,223.31,223.28,110.2]
[1759380387149,4.0282,223.32,223.28,110.2]
[1759380387349,7.22,223.31,223.28,110.2]
[1759380387550,4.0282,223.32,223.28,110.2]
[1759380387748,7.22,223.31,223.28,110.2]
[1759380388046,4.0282,223.32,223.28,110.2]
[1759380388253,7.22,223.31,223.28,110.2]
[1759380388449,4.0282,223.32,223.28,110.2]
[1759380388755,7.22,223.31,223.28,110.2]
[1759380388951,4.0282,223.32,223.28,110.2]
[1759380389148,7.22,223.31,223.28,110.2]
[1759380389552,4.0282,223.32,223.28,110.2]
[1759380389948,7.22,223.31,223.28,110.2]
[1759380390154,4.0282,223.32,223.24,9.1549754]
[1759380390357,11.2482,223.32,223.24,9.1549754]
[1759380391155,7.22,223.29,223.21,9.1549754]
[1759380391356,3.06118188,223.29,223.21,7.77]
[1759380391557,10.28118188,223.28,223.21,7.77]
[1759380391757,7.22,223.28,223.21,7.77]
[1759380392151,10.28197921,223.28,223.21,7.77]
[1759380392458,4.44649562,223.27,223.21,7.77]
[1759380392751,3.06152022,223.26,223.21,7.77]
[1759380392952,3.06152022,223.26,223.18,119.3549754]
[1759380392953,7.22,223.25,223.18,119.3549754]
[1759380393153,10.28152022,223.25,223.18,117.97]
[1759380393346,7.22,223.25,223.18,117.97]
[1759380393746,10.28066996,223.25,223.18,117.97]
[1759380393947,7.22,223.25,223.18,117.97]
[1759380394454,1.3849754,223.24,223.18,117.97]
[1759380394655,5.4145754,223.24,223.18,117.97]
[1759380395057,7.22,223.23,223.14,7.77]
[1759380395256,7.22,223.2,223.14,7.77]
[1759380396853,8.6049754,223.23,223.15,7.77]
[1759380397059,3.06609338,223.24,223.15,7.77]
[1759380397354,7.22,223.27,223.2,1.3849754]
[1759380397558,7.22,223.27,223.21,7.77]
[1759380398462,7.22,223.31,223.22,1.3849754]
[1759380398760,7.22,223.31,223.23,7.77]
[1759380399255,7.22,223.31,223.23,11.7998]
[1759380400163,7.22,223.31,223.23,7.77]
[1759380400363,8.6049754,223.29,223.23,7.77]
[1759380403064,7.22,223.29,223.23,7.77]
[1759380405057,11.2489,223.28,223.19,9.1549754]
[1759380406467,4.0292,223.26,223.19,7.77]
[1759380406659,7.22,223.25,223.19,7.77]
[1759380408563,4.0296,223.24,223.19,7.77]
[1759380408858,7.22,223.23,223.19,7.77]
[1759380410466,4.0296,223.24,223.19,7.77]
[1759380410667,7.22,223.23,223.19,7.77]
[1759380411264,4.0296,223.24,223.19,7.77]
[1759380411466,7.22,223.23,223.15,50.6949754]
[1759380411665,7.22,223.21,223.15,49.31]
[1759380412865,11.2503,223.21,223.15,49.31]
[1759380416364,11.8605,223.19,223.15,49.31]
[1759380416564,4.0305,223.19,223.09,7.5]
[1759380416768,4.0309,223.17,223.1,1.3849754]
[1759380417573,4.0313,223.15,223.09,7.5]
[1759380417972,9.2149754,223.18,223.09,11.5322]
[1759380418771,9.2149754,223.18,223.09,7.5]
[1759380419664,4.031,223.16,223.09,7.5]
[1759380420171,7.83,223.16,223.09,7.5]
[1759380420864,7.83,223.16,223.03,114.2732]
[1759380420865,4.0318,223.12,223.04,8.8849754]
[1759380421069,4.0318,223.12,223.04,7.5]
[1759380421274,4.0318,223.12,223.04,8.8849754]
[1759380421474,7.83,223.18,223.08,7.5]
[1759380421778,7.83,223.18,223.11,7.5]
[1759380423071,1.3849754,223.21,223.11,7.5]
[1759380423571,4.0303,223.2,223.11,7.5]
[1759380423767,7.83,223.19,223.11,7.5]
[1759380424176,10.88873022,223.19,223.11,7.5]
[1759380424477,7.83,223.19,223.11,7.5]
[1759380425580,4.0307,223.18,223.11,7.5]
[1759380431378,7.83,223.19,223.11,11.5319]
[1759380431578,7.83,223.19,223.12,7.5]
[1759380433083,4.0303,223.21,223.12,7.5]
[1759380433671,4.0303,223.21,223.1,2.167924]
[1759380433672,7.83,223.23,223.14,7.5]
[1759380433877,7.83,223.26,223.14,7.5]
[1759380434078,7.83,223.26,223.14,2.167924]
[1759380434281,7.83,223.26,223.15,7.5]
[1759380434673,7.83,223.25,223.11,55.92]
[1759380434981,7.83,223.25,223.12,7.5]
[1759380434982,70.5105,223.25,223.12,7.5]
[1759380435174,7.83,223.2,223.12,7.5]
[1759380436383,4.0305,223.19,223.12,7.5]
[1759380436582,9.997924,223.24,223.13,7.5]
[1759380436882,4.0301,223.22,223.13,7.5]
[1759380437382,4.0301,223.22,223.15,7.5]
[1759380442185,4.0303,223.21,223.15,7.5]
[1759380442688,7.7,223.22,223.11,77.33]
[1759380443080,62.687,223.23,223.11,7.59]
[1759380443280,4.0309,223.17,223.11,7.59]
[1759380452492,7.7,223.18,223.11,7.59]
[1759380459400,11.7308,223.18,223.11,7.59]
[1759380461899,4.031,223.17,223.11,7.59]
[1759380462298,7.75,223.16,223.11,7.59]
[1759380462691,4.031,223.17,223.11,7.59]
[1759380462893,7.75,223.16,223.11,7.59]
[1759380463098,7.75,223.14,223.11,7.59]
[1759380464900,7.75,223.14,223.07,4.0327]
[1759380465098,11.781,223.17,223.08,7.44]
[1759380465402,3.10494943,223.16,223.08,7.44]
[1759380465596,3.10494943,223.15,223.09,7.44]
[1759380465789,3.10494943,223.14,223.08,4.0323]
[1759380465995,11.781,223.17,223.09,7.44]
[1759380466196,3.10474882,223.16,223.09,11.4721]
[1759380466500,3.10474882,223.15,223.09,11.4721]
[1759380466797,3.10474882,223.14,223.1,7.44]
[1759380467001,11.781,223.17,223.1,7.44]
[1759380467198,3.10542838,223.16,223.1,7.44]
[1759380467398,3.10542838,223.15,223.1,7.44]
[1759380467603,3.10542838,223.14,223.09,4.0321]
[1759380467802,11.781,223.17,223.1,7.44]
[1759380468006,3.10667477,223.16,223.1,7.44]
[1759380468202,3.10667477,223.15,223.09,4.0321]
[1759380468402,10.85667477,223.14,223.1,7.44]
[1759380468601,4.0312,223.16,223.1,7.44]
[1759380468801,3.10664478,223.15,223.1,7.44]
[1759380469104,7.75,223.13,223.07,11.4727]
[1759380470005,11.7816,223.13,223.07,7.44]
[1759380470194,11.7816,223.13,223.01,15.39873663]
[1759380470195,7.75,223.11,223.03,7.44]
[1759380470399,7.75,223.16,223.03,7.44]
[1759380470600,3.10627794,223.15,223.03,7.44]
[1759380470802,3.10627794,223.14,223.03,7.44]
[1759380470997,3.10627794,223.13,223.03,7.44]
[1759380471198,3.10627794,223.12,223.03,7.44]
[1759380471404,7.75,223.16,223.03,7.44]
[1759380471603,7.75,223.14,223.07,11.4727]
[1759380471805,3.10603084,223.13,223.07,11.4727]
[1759380472006,10.85603084,223.12,223.07,4.0327]
[1759380472307,7.75,223.12,223.08,7.44]
[1759380472509,7.75,223.12,223.07,4.0327]
[1759380472705,7.75,223.12,223.08,7.44]
[1759380472905,7.75,223.12,223.07,4.0327]
[1759380473102,7.75,223.12,223.08,7.44]
[1759380473605,7.75,223.16,223.08,11.4723]
[1759380473805,3.1043086,223.15,223.09,7.77]
[1759380474011,12.90846972,223.24,223.11,7.77]
[1759380474310,3.10478805,223.23,223.16,7.77]
[1759380474511,3.10478805,223.22,223.16,7.77]
[1759380474708,3.10478805,223.21,223.13,7.77]
[1759380474910,3.10478805,223.2,223.13,7.77]
[1759380475109,7.94,223.24,223.17,7.77]
[1759380475411,3.10482362,223.23,223.17,7.77]
[1759380475613,3.10482362,223.22,223.17,7.77]
[1759380475803,3.10482362,223.21,223.17,7.77]
[1759380476115,3.10482362,223.2,223.17,7.77]
[1759380476311,7.94,223.24,223.17,7.77]
[1759380476610,3.10450385,223.23,223.17,7.77]
[1759380476807,11.04450385,223.22,223.16,11.8009]
[1759380477006,3.10450385,223.21,223.17,7.77]
[1759380477203,3.10450385,223.2,223.17,7.77]
[1759380477409,7.94,223.22,223.16,4.0309]
[1759380477705,3.10386119,223.21,223.17,7.77]
[1759380477902,3.10386119,223.2,223.17,7.77]
[1759380478107,7.94,223.22,223.16,4.0309]
[1759380478303,3.10351281,223.21,223.16,4.0309]
[1759380478502,3.10351281,223.2,223.16,4.0309]
[1759380478709,7.94,223.22,223.16,4.0309]
[1759380479008,3.10351279,223.21,223.16,4.0309]
[1759380479314,3.10351279,223.2,223.16,4.0309]
[1759380479614,11.9694,223.25,223.18,4.0306]
[1759380479615,3.10351279,223.24,223.18,4.0306]
[1759380479815,3.10351279,223.23,223.18,4.0306]
[1759380480014,3.10351279,223.22,223.18,4.0306]
[1759380480209,3.10351279,223.21,223.18,4.0306]
[1759380480514,7.94,223.25,223.18,11.8006]
[1759380480716,3.10425664,223.24,223.18,11.8006]
[1759380480910,3.10425664,223.23,223.18,4.0306]
[1759380481115,3.10425664,223.22,223.16,7.77]
[1759380481311,3.10413569,223.21,223.16,7.77]
[1759380481616,11.04367119,223.2,223.16,7.77]
[1759380481812,7.94,223.2,223.16,7.77]
[1759380482016,7.94,223.2,223.11,7.77]
[1759380482315,7.94,223.2,223.13,7.77]
[1759380482713,7.94,223.2,223.13,11.8016]
[1759380483115,7.94,223.2,223.15,4.0312]
[1759380483614,7.94,223.2,223.16,7.77]
[1759380484116,7.94,223.2,223.15,4.0312]
[1759380484316,7.94,223.2,223.12,110.16]
[1759380484317,3.10472853,223.21,223.17,4.0308]
[1759380484613,7.94,223.24,223.18,7.77]
[1759380484808,3.10414998,223.23,223.18,7.77]
[1759380485015,3.10414998,223.22,223.2,7.77]
[1759380485215,7.94,223.28,223.2,7.77]
[1759380490825,11.9689,223.28,223.2,7.77]
[1759380492330,11.9689,223.28,223.2,9.15625813]
[1759380493834,11.9689,223.28,223.2,7.77]
[1759380493835,4.0292,223.26,223.2,7.77]
[1759380494130,7.94,223.25,223.2,7.77]
[1759380494322,4.0292,223.26,223.2,7.77]
[1759380494527,7.94,223.25,223.2,7.77]
[1759380494927,4.0292,223.26,223.2,7.77]
[1759380495122,7.94,223.25,223.2,7.77]
[1759380495323,4.0292,223.26,223.2,7.77]
[1759380495529,7.94,223.23,223.16,11.8009]
[1759380496329,7.94,223.23,223.18,4.0306]
[1759380496833,7.94,223.23,223.19,7.77]
[1759380497223,1.38625813,223.25,223.19,7.77]
[1759380497731,7.94,223.24,223.16,7.77]
[1759380498634,7.94,223.24,223.17,4.0308]
[1759380498928,11.9696,223.24,223.17,4.0308]
[1759380501329,7.94,223.24,223.17,4.0308]
[1759380502131,7.94,223.24,223.19,4.0304]
[1759380502636,4.0289,223.28,223.22,7.87]
[1759380502637,7.2,223.28,223.22,7.87]
[1759380502837,7.2,223.31,223.24,11.8996]
[1759380505031,7.2,223.31,223.25,5.41555813]
[1759380507633,7.2,223.31,223.26,7.54]
[1759380507830,8.66625813,223.34,223.27,11.569]
[1759380508229,7.28,223.34,223.27,12.95525813]
[1759380508830,7.28,223.34,223.29,4.0286]
[1759380509029,7.28,223.34,223.3,7.54]
[1759380509231,1.38625813,223.37,223.29,5.41485813]
[1759380509430,8.66625813,223.37,223.3,7.54]
[1759380510935,8.66625813,223.37,223.29,5.41485813]
[1759380511529,7.28,223.37,223.31,4.0282]
[1759380511728,7.28,223.37,223.31,5.41445813]
[1759380511940,7.28,223.37,223.3,7.54]
[1759380512428,8.66625813,223.37,223.29,1.38625813]
[1759380512739,8.66625813,223.37,223.27,8.92625813]
[1759380513528,4.0275,223.36,223.27,8.92625813]
[1759380513734,4.0275,223.36,223.27,12.95525813]
[1759380513933,7.28,223.37,223.27,12.95525813]
[1759380514131,8.66625813,223.37,223.29,5.41495813]
[1759380514338,7.28,223.37,223.3,7.54]
[1759380514839,7.28,223.37,223.31,4.0283]
[1759380516039,11.3074,223.37,223.3,7.54]
[1759380516338,8.66625813,223.37,223.3,7.54]
[1759380516640,7.28,223.37,223.3,7.54]
[1759380517530,7.28,223.37,223.3,11.5684]
[1759380518540,7.28,223.37,223.31,1.38625813]
[1759380519138,3.04513495,223.39,223.32,11.5681]
[1759380519441,7.28,223.4,223.32,11.5681]
[1759380521242,7.28,223.4,223.33,1.38625813]
[1759380521438,3.04502358,223.42,223.36,7.54]
[1759380521640,3.04502358,223.43,223.36,7.54]
[1759380522043,7.28,223.44,223.36,7.54]
[1759380522239,1.38625813,223.43,223.36,7.54]
[1759380522645,7.28,223.42,223.36,7.54]
[1759380532151,7.28,223.42,223.36,11.5674]
[1759380532553,7.28,223.42,223.36,7.54]
[1759380533549,7.28,223.4,223.33,1.38625813]
[1759380533747,7.28,223.4,223.32,7.54]
[1759380534045,8.66625813,223.4,223.32,7.54]
[1759380534957,7.28,223.4,223.33,5.41415813]
[1759380535652,7.28,223.4,223.35,5.41385813]
[1759380535856,4.0262,223.43,223.36,7.22]
[1759380536257,7.81,223.44,223.36,7.22]
[1759380536853,1.38625813,223.43,223.35,1.38625813]
[1759380537161,7.81,223.42,223.34,4.0278]
[1759380538056,9.19625813,223.42,223.33,8.60625813]
[1759380538259,7.81,223.39,223.33,7.22]
[1759380541364,7.81,223.39,223.33,8.60625813]
[1759380542660,7.81,223.42,223.37,1.38625813]
[1759380542862,7.81,223.42,223.38,7.22]
[1759380543062,7.81,223.45,223.38,7.22]
[1759380543262,7.81,223.45,223.37,1.38625813]
[1759380543560,4.0262,223.43,223.37,1.38625813]
[1759380544159,7.81,223.42,223.37,1.38625813]
[1759380544365,7.81,223.42,223.35,8.60625813]
[1759380546470,7.81,223.45,223.39,1.38625813]
[1759380548369,4.0256,223.46,223.4,7.22]
[1759380550668,11.8356,223.46,223.4,7.22]
[1759380558172,7.81,223.46,223.4,7.22]
[1759380559472,7.81,223.46,223.4,11.2465]
[1759380559668,7.81,223.46,223.4,4.0265]
[1759380559867,4.0252,223.49,223.38,2.16247213]
[1759380559868,11.8352,223.49,223.42,7.22]
[1759380560068,7.81,223.49,223.42,7.22]
[1759380560373,7.81,223.54,223.42,7.22]
[1759380561672,11.8342,223.54,223.45,7.5]
[1759380562171,11.8342,223.54,223.47,7.5]
[1759380562365,7.81,223.54,223.47,7.5]
[1759380562562,7.74,223.57,223.47,7.5]
[1759380563569,7.74,223.57,223.48,4.0252]
[1759380563966,7.74,223.57,223.47,7.5]
[1759380565676,7.67,223.57,223.47,7.5]
[1759380567373,7.67,223.57,223.47,11.5254]
[1759380568072,7.67,223.57,223.48,7.69]
[1759380568674,4.0238,223.56,223.48,7.69]
[1759380568978,7.67,223.57,223.48,7.69]
[1759380569375,7.67,223.58,223.45,117.49]
[1759380569571,62.5835,223.6,223.45,7.69]
[1759380569778,7.67,223.59,223.47,7.69]
[1759380570573,4.0237,223.57,223.47,7.69]
[1759380571276,7.67,223.56,223.47,7.69]
[1759380573681,62.5943,223.56,223.42,4.0262]
[1759380573884,9.83247213,223.54,223.43,7.69]
[1759380574680,4.0246,223.52,223.43,7.69]
[1759380574877,7.67,223.51,223.43,7.69]
[1759380576986,7.67,223.51,223.44,4.0259]
[1759380582395,7.67,223.51,223.45,7.69]
[1759380590802,7.67,223.51,223.46,4.0256]
[1759380591003,7.67,223.55,223.47,7.69]
[1759380591995,11.6941,223.55,223.47,7.69]
[1759380592802,4.0243,223.54,223.47,7.69]
[1759380593002,7.67,223.53,223.47,7.69]
[1759380601405,7.34,223.51,223.42,7.21]
[1759380602110,7.34,223.51,223.43,7.21]
[1759380602410,7.34,223.51,223.45,11.2356]
[1759380602611,7.34,223.51,223.45,7.21]
[1759380602908,7.34,223.54,223.45,7.21]
[1759380604608,7.34,223.54,223.48,11.2351]
[1759380607410,7.34,223.54,223.49,7.21]
[1759380608010,7.34,223.54,223.48,4.0251]
[1759380608211,7.34,223.54,223.49,7.21]
[1759380608511,7.34,223.54,223.48,4.0251]
[1759380608712,7.34,223.54,223.51,7.21]
[1759380609716,7.34,223.57,223.51,7.21]
[1759380610916,7.34,223.57,223.51,2.16247213]
[1759380611118,4.96846972,223.62,223.52,7.21]
[1759380611320,7.34,223.61,223.52,7.21]
[1759380611818,7.34,223.61,223.53,4.0243]
[1759380612016,7.34,223.61,223.54,7.21]
[1759380612216,7.34,223.61,223.45,4.99716159]
[1759380612419,7.34,223.61,223.48,7.21]
[1759380613121,4.0233,223.59,223.48,4.0251]
[1759380613319,7.34,223.58,223.49,7.21]
[1759380613722,7.34,223.58,223.51,7.21]
[1759380614315,7.34,223.61,223.53,1.38218948]
[1759380617725,7.34,223.61,223.55,1.38218948]
[1759380618222,7.34,223.61,223.55,8.59218948]
[1759380619527,7.34,223.61,223.58,7.21]
[1759380619726,1.38218948,223.6,223.52,8.59218948]
[1759380619923,7.34,223.59,223.52,8.59218948]
[1759380623027,7.34,223.59,223.52,7.21]
[1759380623329,7.34,223.59,223.53,1.38218948]
[1759380624929,7.34,223.59,223.52,7.21]
[1759380625125,7.34,223.59,223.53,1.38218948]
[1759380626927,7.34,223.59,223.52,7.21]
[1759380627127,7.34,223.59,223.53,1.38218948]
[1759380631233,7.55,223.57,223.48,1.38218948]
[1759380631626,1.38218948,223.56,223.46,8.61218948]
[1759380631829,7.55,223.55,223.46,8.61218948]
[1759380633442,7.55,223.58,223.51,7.23]
[1759380635224,7.55,223.58,223.5,1.38218948]
[1759380635929,11.5736,223.58,223.48,8.61218948]
[1759380636927,1.38218948,223.57,223.48,8.61218948]
[1759380637136,7.55,223.56,223.48,8.61218948]
[1759380637532,11.5739,223.56,223.48,1.38218948]
[1759380637734,11.5739,223.56,223.47,4.0253]
[1759380638038,12.95608948,223.56,223.47,4.0253]
[1759380639238,7.55,223.53,223.46,110.96218948]
[1759380640632,7.55,223.53,223.41,330.59716159]
[1759380640633,1.38218948,223.54,223.41,337.82716159]
[1759380640839,7.55,223.49,223.41,332.83]
[1759380641041,1.38218948,223.5,223.41,334.21218948]
[1759380641339,7.55,223.49,223.41,7.23]
[1759380641640,7.55,223.49,223.41,8.61218948]